[Event "Titled Tuesday Blitz April 26 Early 2022"]
[White "Ning, Kaiyu"]
[Black "Swiercz, Dariusz"]
[WhiteFideId "8614750"]
[BlackFideId "1126881"]
[WhiteElo "2013"]
[BlackElo "2627"]
[Result "0-1"]
[Round "09"]
[TimeControl "180+1"]
[Date "2022.04.26"]
[WhiteClock "0:01:06"]
[BlackClock "0:01:50"]

1. d4 {[%clk 0:03:00]}  d5 {[%clk 0:02:58]} 2. c4 {[%clk 0:03:01]}  c6 {[%clk 0:02:58]} 3. Nf3 {[%clk 0:03:01]}  Nf6 {[%clk 0:02:59]} 4. e3 {[%clk 0:03:02]}  Bg4 {[%clk 0:02:57]} 5. h3 {[%clk 0:03:00]}  Bxf3 {[%clk 0:02:57]} 6. Qxf3 {[%clk 0:03:00]}  e6 {[%clk 0:02:58]} 7. Bd3 {[%clk 0:02:59]}  Bb4+ {[%clk 0:02:58]} 8. Nd2 {[%clk 0:02:57]}  O-O {[%clk 0:02:57]} 9. O-O {[%clk 0:02:58]}  Nbd7 {[%clk 0:02:57]} 10. a3 {[%clk 0:02:48]}  Ba5 {[%clk 0:02:58]} 11. b4 {[%clk 0:02:48]}  Bc7 {[%clk 0:02:58]} 12. e4 {[%clk 0:02:47]}  dxe4 {[%clk 0:02:51]} 13. Nxe4 {[%clk 0:02:48]}  Nxe4 {[%clk 0:02:42]} 14. Qxe4 {[%clk 0:02:47]}  Nf6 {[%clk 0:02:43]} 15. Qh4 {[%clk 0:02:47]}  Re8 {[%clk 0:02:31]} 16. Bb2 {[%clk 0:02:04]}  h6 {[%clk 0:02:23]} 17. Rad1 {[%clk 0:02:03]}  a5 {[%clk 0:02:21]} 18. Bb1 {[%clk 0:01:55]}  axb4 {[%clk 0:02:21]} 19. axb4 {[%clk 0:01:56]}  Qd6 {[%clk 0:02:14]} 20. g3 {[%clk 0:01:19]}  Qxb4 {[%clk 0:02:14]} 21. Bc1 {[%clk 0:01:06]}  Qxb1 {[%clk 0:02:12]} 22. Bf4 {[%clk 0:01:06]}  Qh7 {[%clk 0:01:50]} 0-1


[Site "https://www.chess.com"]

[Event "Titled Tuesday Blitz April 26 Early 2022"]
[White "Nozdrachev, Leonid"]
[Black "Seifert, Henryk"]
[WhiteFideId "24113433"]
[BlackFideId "1100963"]
[WhiteElo "2242"]
[BlackElo "2120"]
[Result "1-0"]
[Round "09"]
[TimeControl "180+1"]
[Date "2022.04.26"]
[WhiteClock "0:01:04"]
[BlackClock "0:00:02"]

1. e4 {[%clk 0:02:58]}  e6 {[%clk 0:02:58]} 2. Nf3 {[%clk 0:02:56]}  d5 {[%clk 0:02:57]} 3. e5 {[%clk 0:02:53]}  c5 {[%clk 0:02:57]} 4. b4 {[%clk 0:02:53]}  cxb4 {[%clk 0:02:50]} 5. a3 {[%clk 0:02:52]}  Nc6 {[%clk 0:02:39]} 6. axb4 {[%clk 0:02:50]}  Bxb4 {[%clk 0:02:37]} 7. c3 {[%clk 0:02:49]}  Be7 {[%clk 0:02:25]} 8. d4 {[%clk 0:02:48]}  Nh6 {[%clk 0:02:25]} 9. Bxh6 {[%clk 0:02:46]}  gxh6 {[%clk 0:02:24]} 10. Bd3 {[%clk 0:02:44]}  f5 {[%clk 0:02:15]} 11. exf6 {[%clk 0:02:41]}  Bxf6 {[%clk 0:02:14]} 12. O-O {[%clk 0:02:36]}  O-O {[%clk 0:02:13]} 13. Re1 {[%clk 0:02:32]}  Kh8 {[%clk 0:02:02]} 14. Ra2 {[%clk 0:02:03]}  Rg8 {[%clk 0:01:20]} 15. Rae2 {[%clk 0:01:59]}  Bd7 {[%clk 0:01:07]} 16. c4 {[%clk 0:01:58]}  Nb4 {[%clk 0:00:24]} 17. Nc3 {[%clk 0:01:51]}  Nxd3 {[%clk 0:00:21]} 18. Qxd3 {[%clk 0:01:52]}  dxc4 {[%clk 0:00:19]} 19. Qxc4 {[%clk 0:01:48]}  Bc6 {[%clk 0:00:19]} 20. Ne4 {[%clk 0:01:37]}  Bd5 {[%clk 0:00:12]} 21. Qd3 {[%clk 0:01:31]}  Rc8 {[%clk 0:00:10]} 22. Ne5 {[%clk 0:01:26]}  Bxe5 {[%clk 0:00:07]} 23. dxe5 {[%clk 0:01:27]}  Bc4 {[%clk 0:00:05]} 24. Qxd8 {[%clk 0:01:21]}  Rgxd8 {[%clk 0:00:04]} 25. Re3 {[%clk 0:01:20]}  Bd5 {[%clk 0:00:04]} 26. Nd6 {[%clk 0:01:19]}  Rc7 {[%clk 0:00:03]} 27. h4 {[%clk 0:01:14]}  a6 {[%clk 0:00:02]} 28. Rb1 {[%clk 0:01:12]}  b5 {[%clk 0:00:02]} 29. Rb4 {[%clk 0:01:04]} 1-0


[Site "https://www.chess.com"]

[Event "Titled Tuesday Blitz April 26 Early 2022"]
[White "Petrova, Irina"]
[Black "Noboa Silva, Kevin"]
[WhiteFideId "14124122"]
[BlackFideId "3618471"]
[WhiteElo "1993"]
[BlackElo "2172"]
[Result "0-1"]
[Round "09"]
[TimeControl "180+1"]
[Date "2022.04.26"]
[WhiteClock "0:00:04"]
[BlackClock "0:00:04"]

1. e4 {[%clk 0:03:00]}  e6 {[%clk 0:02:59]} 2. d4 {[%clk 0:03:00]}  d5 {[%clk 0:02:58]} 3. Nc3 {[%clk 0:03:00]}  Nf6 {[%clk 0:02:58]} 4. Bg5 {[%clk 0:02:59]}  Be7 {[%clk 0:02:57]} 5. e5 {[%clk 0:02:59]}  Nfd7 {[%clk 0:02:57]} 6. Bxe7 {[%clk 0:03:00]}  Qxe7 {[%clk 0:02:58]} 7. f4 {[%clk 0:03:00]}  a6 {[%clk 0:02:58]} 8. Nf3 {[%clk 0:03:00]}  c5 {[%clk 0:02:58]} 9. Bd3 {[%clk 0:03:00]}  Nc6 {[%clk 0:02:58]} 10. dxc5 {[%clk 0:03:00]}  Nxc5 {[%clk 0:02:58]} 11. Qd2 {[%clk 0:03:00]}  b5 {[%clk 0:02:58]} 12. a3 {[%clk 0:03:00]}  Bb7 {[%clk 0:02:55]} 13. O-O {[%clk 0:03:00]}  O-O {[%clk 0:02:54]} 14. Ne2 {[%clk 0:02:51]}  Ne4 {[%clk 0:02:33]} 15. Qe3 {[%clk 0:02:36]}  Na5 {[%clk 0:02:29]} 16. Nfd4 {[%clk 0:02:30]}  Rac8 {[%clk 0:02:26]} 17. b3 {[%clk 0:02:12]}  Rc7 {[%clk 0:02:19]} 18. Kh1 {[%clk 0:02:04]}  Rfc8 {[%clk 0:02:18]} 19. Bxe4 {[%clk 0:01:25]}  dxe4 {[%clk 0:02:15]} 20. Qg3 {[%clk 0:01:26]}  g6 {[%clk 0:02:00]} 21. f5 {[%clk 0:01:23]}  exf5 {[%clk 0:01:16]} 22. Nxf5 {[%clk 0:01:24]}  Qe6 {[%clk 0:00:46]} 23. Nh6+ {[%clk 0:01:23]}  Kg7 {[%clk 0:00:40]} 24. Nf5+ {[%clk 0:01:07]}  Kh8 {[%clk 0:00:37]} 25. Nd6 {[%clk 0:01:07]}  Rf8 {[%clk 0:00:27]} 26. Nd4 {[%clk 0:01:02]}  Qe7 {[%clk 0:00:22]} 27. N4f5 {[%clk 0:00:56]}  gxf5 {[%clk 0:00:16]} 28. Nxf5 {[%clk 0:00:56]}  Rg8 {[%clk 0:00:17]} 29. Nxe7 {[%clk 0:00:48]}  Rxg3 {[%clk 0:00:15]} 30. hxg3 {[%clk 0:00:43]}  Rxe7 {[%clk 0:00:16]} 31. Rad1 {[%clk 0:00:41]}  Kg7 {[%clk 0:00:15]} 32. Rf4 {[%clk 0:00:33]}  Nc6 {[%clk 0:00:14]} 33. Rxe4 {[%clk 0:00:31]}  Nxe5 {[%clk 0:00:14]} 34. Red4 {[%clk 0:00:27]}  f6 {[%clk 0:00:13]} 35. c4 {[%clk 0:00:26]}  bxc4 {[%clk 0:00:13]} 36. bxc4 {[%clk 0:00:27]}  Kf7 {[%clk 0:00:13]} 37. c5 {[%clk 0:00:22]}  Bc6 {[%clk 0:00:13]} 38. Rd6 {[%clk 0:00:20]}  Bb5 {[%clk 0:00:08]} 39. a4 {[%clk 0:00:16]}  Bc6 {[%clk 0:00:07]} 40. Rf1 {[%clk 0:00:15]}  Re6 {[%clk 0:00:06]} 41. a5 {[%clk 0:00:11]}  Rxd6 {[%clk 0:00:05]} 42. cxd6 {[%clk 0:00:12]}  Ke6 {[%clk 0:00:06]} 43. Kg1 {[%clk 0:00:11]}  Nd7 {[%clk 0:00:05]} 44. Rd1 {[%clk 0:00:10]}  Bd5 {[%clk 0:00:06]} 45. Kf2 {[%clk 0:00:07]}  Kxd6 {[%clk 0:00:06]} 46. Rh1 {[%clk 0:00:07]}  Be4 {[%clk 0:00:04]} 47. Ke3 {[%clk 0:00:07]}  Bg6 {[%clk 0:00:04]} 48. Rb1 {[%clk 0:00:05]}  Kc6 {[%clk 0:00:04]} 49. Kf4 {[%clk 0:00:04]}  Bxb1 {[%clk 0:00:04]} 0-1


[Site "https://www.chess.com"]

[Event "Titled Tuesday Blitz April 26 Early 2022"]
[White "Petrovskyi, Vadym"]
[Black "Guseva, Marina"]
[WhiteFideId "14165210"]
[BlackFideId "4149351"]
[WhiteElo "2400"]
[BlackElo "2071"]
[Result "1-0"]
[Round "09"]
[TimeControl "180+1"]
[Date "2022.04.26"]
[WhiteClock "0:00:47"]
[BlackClock "0:00:15"]

1. e4 {[%clk 0:03:00]}  c5 {[%clk 0:02:57]} 2. Nf3 {[%clk 0:03:01]}  Nc6 {[%clk 0:02:55]} 3. Bb5 {[%clk 0:03:00]}  d6 {[%clk 0:02:47]} 4. d4 {[%clk 0:02:56]}  cxd4 {[%clk 0:02:42]} 5. Nxd4 {[%clk 0:02:57]}  Bd7 {[%clk 0:02:40]} 6. Nc3 {[%clk 0:02:56]}  Nf6 {[%clk 0:02:35]} 7. Bg5 {[%clk 0:02:53]}  e6 {[%clk 0:02:31]} 8. Qd3 {[%clk 0:02:52]}  Be7 {[%clk 0:02:30]} 9. O-O-O {[%clk 0:02:46]}  Rc8 {[%clk 0:02:03]} 10. Bxc6 {[%clk 0:02:40]}  Bxc6 {[%clk 0:02:02]} 11. Rhe1 {[%clk 0:02:36]}  a6 {[%clk 0:01:52]} 12. Kb1 {[%clk 0:02:31]}  O-O {[%clk 0:01:51]} 13. f4 {[%clk 0:02:28]}  h6 {[%clk 0:01:43]} 14. Bh4 {[%clk 0:02:25]}  Nxe4 {[%clk 0:01:37]} 15. Bxe7 {[%clk 0:02:19]}  Nxc3+ {[%clk 0:01:36]} 16. Qxc3 {[%clk 0:02:20]}  Qxe7 {[%clk 0:01:36]} 17. Nf5 {[%clk 0:02:20]}  Qf6 {[%clk 0:01:34]} 18. Qxf6 {[%clk 0:02:18]}  gxf6 {[%clk 0:01:33]} 19. Ne7+ {[%clk 0:02:18]}  Kg7 {[%clk 0:01:33]} 20. Nxc8 {[%clk 0:02:19]}  Rxc8 {[%clk 0:01:33]} 21. Rxd6 {[%clk 0:02:19]}  f5 {[%clk 0:01:31]} 22. Kc1 {[%clk 0:02:14]}  Kf6 {[%clk 0:01:31]} 23. Re2 {[%clk 0:02:12]}  h5 {[%clk 0:01:23]} 24. Red2 {[%clk 0:02:09]}  Ke7 {[%clk 0:01:21]} 25. g3 {[%clk 0:02:04]}  Rh8 {[%clk 0:01:18]} 26. b3 {[%clk 0:01:56]}  h4 {[%clk 0:01:14]} 27. R6d3 {[%clk 0:01:55]}  Kf6 {[%clk 0:01:07]} 28. Kb2 {[%clk 0:01:49]}  Be4 {[%clk 0:01:05]} 29. Rd8 {[%clk 0:01:42]}  Rh7 {[%clk 0:01:04]} 30. Rc8 {[%clk 0:01:32]}  hxg3 {[%clk 0:01:03]} 31. hxg3 {[%clk 0:01:33]}  Rg7 {[%clk 0:01:03]} 32. Rc3 {[%clk 0:01:30]}  Rh7 {[%clk 0:00:59]} 33. a4 {[%clk 0:01:27]}  Rh1 {[%clk 0:00:57]} 34. Rd7 {[%clk 0:01:22]}  Rh7 {[%clk 0:00:41]} 35. Rcc7 {[%clk 0:01:22]}  Rg7 {[%clk 0:00:38]} 36. Rc3 {[%clk 0:01:16]}  Bc6 {[%clk 0:00:36]} 37. Rc7 {[%clk 0:01:09]}  Bd5 {[%clk 0:00:30]} 38. a5 {[%clk 0:01:03]}  Kg6 {[%clk 0:00:30]} 39. Re3 {[%clk 0:00:59]}  Kh5 {[%clk 0:00:28]} 40. c4 {[%clk 0:00:59]}  Be4 {[%clk 0:00:27]} 41. b4 {[%clk 0:00:57]}  Kg4 {[%clk 0:00:26]} 42. b5 {[%clk 0:00:56]}  axb5 {[%clk 0:00:24]} 43. cxb5 {[%clk 0:00:56]}  Rh7 {[%clk 0:00:24]} 44. Kc3 {[%clk 0:00:52]}  Bd5 {[%clk 0:00:20]} 45. Kd4 {[%clk 0:00:49]}  Rh1 {[%clk 0:00:17]} 46. Kc5 {[%clk 0:00:48]}  Rc1+ {[%clk 0:00:16]} 47. Kb6 {[%clk 0:00:48]}  Ra1 {[%clk 0:00:15]} 48. Rxf7 {[%clk 0:00:47]} 1-0


[Site "https://www.chess.com"]

[Event "Titled Tuesday Blitz April 26 Early 2022"]
[White "Pham, Tran Gia Phuc"]
[Black "Estrada Nieto, Julian"]
[WhiteFideId "12415669"]
[BlackFideId "5101018"]
[WhiteElo "1789"]
[BlackElo "2252"]
[Result "1-0"]
[Round "09"]
[TimeControl "180+1"]
[Date "2022.04.26"]
[WhiteClock "0:01:16"]
[BlackClock "0:00:32"]

1. e4 {[%clk 0:03:00]}  e5 {[%clk 0:02:59]} 2. Nf3 {[%clk 0:02:59]}  Nc6 {[%clk 0:02:59]} 3. Bc4 {[%clk 0:02:59]}  Bc5 {[%clk 0:02:58]} 4. c3 {[%clk 0:02:58]}  d6 {[%clk 0:02:57]} 5. d4 {[%clk 0:02:58]}  exd4 {[%clk 0:02:58]} 6. cxd4 {[%clk 0:02:58]}  Bb6 {[%clk 0:02:58]} 7. Nc3 {[%clk 0:02:58]}  Nf6 {[%clk 0:02:58]} 8. O-O {[%clk 0:02:58]}  O-O {[%clk 0:02:58]} 9. Bg5 {[%clk 0:02:57]}  h6 {[%clk 0:02:57]} 10. Bh4 {[%clk 0:02:57]}  Bg4 {[%clk 0:02:57]} 11. e5 {[%clk 0:02:49]}  dxe5 {[%clk 0:02:55]} 12. dxe5 {[%clk 0:02:47]}  Qxd1 {[%clk 0:02:54]} 13. Nxd1 {[%clk 0:02:38]}  Bxf3 {[%clk 0:02:51]} 14. exf6 {[%clk 0:02:37]}  g5 {[%clk 0:02:31]} 15. Bg3 {[%clk 0:02:28]}  Be4 {[%clk 0:02:20]} 16. Nc3 {[%clk 0:02:25]}  Bg6 {[%clk 0:02:20]} 17. Nd5 {[%clk 0:02:25]}  Rad8 {[%clk 0:02:10]} 18. Rad1 {[%clk 0:02:18]}  Rfe8 {[%clk 0:02:08]} 19. Nxc7 {[%clk 0:02:15]}  Bxc7 {[%clk 0:02:00]} 20. Bxc7 {[%clk 0:02:14]}  Rxd1 {[%clk 0:01:58]} 21. Rxd1 {[%clk 0:02:13]}  Bc2 {[%clk 0:01:48]} 22. Rc1 {[%clk 0:02:13]}  Bf5 {[%clk 0:01:45]} 23. f4 {[%clk 0:02:08]}  g4 {[%clk 0:01:42]} 24. Bd5 {[%clk 0:02:05]}  Bd7 {[%clk 0:01:39]} 25. Rc2 {[%clk 0:02:00]}  Nd4 {[%clk 0:01:32]} 26. Rd2 {[%clk 0:01:59]}  Nf5 {[%clk 0:01:31]} 27. Bxb7 {[%clk 0:01:56]}  Bb5 {[%clk 0:01:24]} 28. Rd8 {[%clk 0:01:56]}  Rxd8 {[%clk 0:01:24]} 29. Bxd8 {[%clk 0:01:56]}  Bc4 {[%clk 0:01:21]} 30. b3 {[%clk 0:01:55]}  Bd3 {[%clk 0:01:20]} 31. a4 {[%clk 0:01:54]}  Bc2 {[%clk 0:01:20]} 32. b4 {[%clk 0:01:48]}  Bxa4 {[%clk 0:01:19]} 33. Bc7 {[%clk 0:01:45]}  Bb5 {[%clk 0:01:08]} 34. Be4 {[%clk 0:01:37]}  Nd4 {[%clk 0:01:05]} 35. Bb8 {[%clk 0:01:36]}  a6 {[%clk 0:01:04]} 36. Kf2 {[%clk 0:01:36]}  Nc6 {[%clk 0:00:59]} 37. Bd6 {[%clk 0:01:34]}  Nd4 {[%clk 0:00:58]} 38. Ke3 {[%clk 0:01:31]}  Ne6 {[%clk 0:00:55]} 39. Bf5 {[%clk 0:01:29]}  h5 {[%clk 0:00:54]} 40. g3 {[%clk 0:01:28]}  Nd8 {[%clk 0:00:50]} 41. Kd4 {[%clk 0:01:27]}  Ne6+ {[%clk 0:00:47]} 42. Kd5 {[%clk 0:01:26]}  Ba4 {[%clk 0:00:44]} 43. Bd3 {[%clk 0:01:23]}  Bb3+ {[%clk 0:00:36]} 44. Kc6 {[%clk 0:01:22]}  Nd8+ {[%clk 0:00:33]} 45. Kc7 {[%clk 0:01:17]}  Ne6+ {[%clk 0:00:32]} 46. Kb6 {[%clk 0:01:16]} 1-0


[Site "https://www.chess.com"]

[Event "Titled Tuesday Blitz April 26 Early 2022"]
[White "Pires, Marcos Vinicius Torsani"]
[Black "Sovetbekova, Nurai"]
[WhiteFideId "2118939"]
[BlackFideId "13801910"]
[WhiteElo "2273"]
[BlackElo "1538"]
[Result "1-0"]
[Round "09"]
[TimeControl "180+1"]
[Date "2022.04.26"]
[WhiteClock "0:00:42"]
[BlackClock "0:00:08"]

1. d4 {[%clk 0:03:00]}  Nf6 {[%clk 0:02:58]} 2. Bf4 {[%clk 0:03:01]}  g6 {[%clk 0:02:58]} 3. e3 {[%clk 0:03:00]}  Bg7 {[%clk 0:02:58]} 4. Nf3 {[%clk 0:03:01]}  O-O {[%clk 0:02:58]} 5. Be2 {[%clk 0:03:01]}  d6 {[%clk 0:02:58]} 6. h3 {[%clk 0:03:02]}  c5 {[%clk 0:02:58]} 7. c3 {[%clk 0:03:02]}  Nbd7 {[%clk 0:02:52]} 8. O-O {[%clk 0:02:58]}  Qe8 {[%clk 0:02:41]} 9. Bh2 {[%clk 0:02:54]}  e5 {[%clk 0:02:40]} 10. dxe5 {[%clk 0:02:48]}  dxe5 {[%clk 0:02:39]} 11. Nbd2 {[%clk 0:02:39]}  e4 {[%clk 0:02:04]} 12. Ne1 {[%clk 0:02:35]}  Nb6 {[%clk 0:02:03]} 13. Bd6 {[%clk 0:02:26]}  Qc6 {[%clk 0:01:56]} 14. Bxf8 {[%clk 0:02:26]}  Bxf8 {[%clk 0:01:57]} 15. a4 {[%clk 0:02:20]}  Be6 {[%clk 0:01:55]} 16. a5 {[%clk 0:02:13]}  Nbd5 {[%clk 0:01:51]} 17. Nc4 {[%clk 0:02:08]}  Rd8 {[%clk 0:01:47]} 18. Qc1 {[%clk 0:02:07]}  b5 {[%clk 0:01:27]} 19. axb6 {[%clk 0:02:03]}  axb6 {[%clk 0:01:28]} 20. Na3 {[%clk 0:02:01]}  Nc7 {[%clk 0:01:15]} 21. Nec2 {[%clk 0:01:58]}  Nfd5 {[%clk 0:01:05]} 22. Rd1 {[%clk 0:01:55]}  Be7 {[%clk 0:01:00]} 23. c4 {[%clk 0:01:53]}  Nf6 {[%clk 0:00:59]} 24. Rxd8+ {[%clk 0:01:53]}  Bxd8 {[%clk 0:00:59]} 25. Nb5 {[%clk 0:01:51]}  Nd7 {[%clk 0:00:56]} 26. Nxc7 {[%clk 0:01:50]}  Bxc7 {[%clk 0:00:55]} 27. Qd2 {[%clk 0:01:45]}  Ne5 {[%clk 0:00:47]} 28. b3 {[%clk 0:01:33]}  Kg7 {[%clk 0:00:36]} 29. Na3 {[%clk 0:01:31]}  Bb8 {[%clk 0:00:28]} 30. Nb5 {[%clk 0:01:30]}  f5 {[%clk 0:00:26]} 31. Qd8 {[%clk 0:01:25]}  Nd7 {[%clk 0:00:21]} 32. Qe7+ {[%clk 0:01:19]}  Kh6 {[%clk 0:00:20]} 33. Rd1 {[%clk 0:01:07]}  Ne5 {[%clk 0:00:11]} 34. Rd8 {[%clk 0:01:00]}  Nf7 {[%clk 0:00:10]} 35. Rxb8 {[%clk 0:00:57]}  f4 {[%clk 0:00:08]} 36. exf4 {[%clk 0:00:52]}  e3 {[%clk 0:00:09]} 37. fxe3 {[%clk 0:00:50]}  Qe4 {[%clk 0:00:09]} 38. Qh4+ {[%clk 0:00:51]}  Kg7 {[%clk 0:00:09]} 39. Qf2 {[%clk 0:00:48]}  Qb1+ {[%clk 0:00:08]} 40. Kh2 {[%clk 0:00:47]}  Qxb3 {[%clk 0:00:09]} 41. Rb7 {[%clk 0:00:44]}  Bc8 {[%clk 0:00:08]} 42. Rxf7+ {[%clk 0:00:42]} 1-0


[Site "https://www.chess.com"]

[Event "Titled Tuesday Blitz April 26 Early 2022"]
[White "Sailer, Mike"]
[Black "Samaganova, Aleksandra"]
[WhiteFideId "2012901"]
[BlackFideId "13800221"]
[WhiteElo "2109"]
[BlackElo "1859"]
[Result "0-1"]
[Round "09"]
[TimeControl "180+1"]
[Date "2022.04.26"]
[WhiteClock "0:00:08"]
[BlackClock "0:00:10"]

1. Nf3 {[%clk 0:03:00]}  c5 {[%clk 0:02:59]} 2. b3 {[%clk 0:02:57]}  Nf6 {[%clk 0:02:58]} 3. Bb2 {[%clk 0:02:58]}  Nc6 {[%clk 0:02:58]} 4. e3 {[%clk 0:02:58]}  e6 {[%clk 0:02:52]} 5. d4 {[%clk 0:02:56]}  d5 {[%clk 0:02:49]} 6. Be2 {[%clk 0:02:53]}  Bd6 {[%clk 0:02:44]} 7. O-O {[%clk 0:02:52]}  O-O {[%clk 0:02:42]} 8. Nbd2 {[%clk 0:02:50]}  b6 {[%clk 0:02:34]} 9. Ne5 {[%clk 0:02:42]}  Qc7 {[%clk 0:02:30]} 10. f4 {[%clk 0:02:41]}  Nd7 {[%clk 0:02:21]} 11. Ndf3 {[%clk 0:02:32]}  f6 {[%clk 0:02:18]} 12. Nxc6 {[%clk 0:02:31]}  Qxc6 {[%clk 0:02:18]} 13. c4 {[%clk 0:02:20]}  Bb7 {[%clk 0:01:52]} 14. a4 {[%clk 0:02:13]}  a6 {[%clk 0:01:50]} 15. Rc1 {[%clk 0:02:07]}  Rfe8 {[%clk 0:01:42]} 16. cxd5 {[%clk 0:02:00]}  exd5 {[%clk 0:01:38]} 17. Qd2 {[%clk 0:01:53]}  Bf8 {[%clk 0:01:27]} 18. Bd3 {[%clk 0:01:50]}  Qe6 {[%clk 0:01:17]} 19. Rce1 {[%clk 0:01:46]}  c4 {[%clk 0:01:09]} 20. Bb1 {[%clk 0:01:29]}  Rac8 {[%clk 0:01:00]} 21. b4 {[%clk 0:01:21]}  Qd6 {[%clk 0:00:51]} 22. Bc3 {[%clk 0:01:19]}  g6 {[%clk 0:00:47]} 23. h3 {[%clk 0:00:59]}  Bc6 {[%clk 0:00:46]} 24. Bc2 {[%clk 0:00:57]}  Bg7 {[%clk 0:00:43]} 25. Nh2 {[%clk 0:00:55]}  Nf8 {[%clk 0:00:43]} 26. f5 {[%clk 0:00:47]}  g5 {[%clk 0:00:40]} 27. Ng4 {[%clk 0:00:35]}  h5 {[%clk 0:00:38]} 28. Nf2 {[%clk 0:00:34]}  Qd7 {[%clk 0:00:37]} 29. Nh1 {[%clk 0:00:32]}  Bxa4 {[%clk 0:00:34]} 30. Ng3 {[%clk 0:00:22]}  h4 {[%clk 0:00:32]} 31. Nh5 {[%clk 0:00:20]}  Bxc2 {[%clk 0:00:31]} 32. Nxg7 {[%clk 0:00:17]}  Kxg7 {[%clk 0:00:28]} 33. Qxc2 {[%clk 0:00:18]}  Re4 {[%clk 0:00:26]} 34. Bd2 {[%clk 0:00:14]}  Rce8 {[%clk 0:00:26]} 35. Ra1 {[%clk 0:00:14]}  Qb7 {[%clk 0:00:20]} 36. Qa4 {[%clk 0:00:13]}  c3 {[%clk 0:00:15]} 37. Bc1 {[%clk 0:00:11]}  Ra8 {[%clk 0:00:10]} 38. Rf2 {[%clk 0:00:10]}  Qc8 {[%clk 0:00:09]} 39. Qb3 {[%clk 0:00:07]}  Qd7 {[%clk 0:00:08]} 40. Ra3 {[%clk 0:00:05]}  a5 {[%clk 0:00:04]} 41. Qxc3 {[%clk 0:00:04]}  Ree8 {[%clk 0:00:02]} 42. bxa5 {[%clk 0:00:04]}  bxa5 {[%clk 0:00:03]} 43. Rxa5 {[%clk 0:00:04]}  Rac8 {[%clk 0:00:03]} 44. Qb2 {[%clk 0:00:03]}  Qc7 {[%clk 0:00:03]} 45. Bd2 {[%clk 0:00:03]}  Qd6 {[%clk 0:00:02]} 46. Rb5 {[%clk 0:00:03]}  Nd7 {[%clk 0:00:02]} 47. Rb6 {[%clk 0:00:03]}  Rc6 {[%clk 0:00:02]} 48. Rxc6 {[%clk 0:00:03]}  Qxc6 {[%clk 0:00:03]} 49. Rf1 {[%clk 0:00:04]}  Qd6 {[%clk 0:00:03]} 50. Rc1 {[%clk 0:00:04]}  Rb8 {[%clk 0:00:02]} 51. Qc2 {[%clk 0:00:05]}  Nb6 {[%clk 0:00:02]} 52. Qc6 {[%clk 0:00:05]}  Qxc6 {[%clk 0:00:02]} 53. Rxc6 {[%clk 0:00:05]}  Nc4 {[%clk 0:00:03]} 54. Bc1 {[%clk 0:00:04]}  Rb1 {[%clk 0:00:03]} 55. Rc5 {[%clk 0:00:03]}  Rxc1+ {[%clk 0:00:02]} 56. Kf2 {[%clk 0:00:03]}  Rc2+ {[%clk 0:00:02]} 57. Kf3 {[%clk 0:00:04]}  Nd2+ {[%clk 0:00:02]} 58. Kg4 {[%clk 0:00:04]}  Rxc5 {[%clk 0:00:02]} 59. dxc5 {[%clk 0:00:04]}  Ne4 {[%clk 0:00:03]} 60. c6 {[%clk 0:00:04]}  Nd6 {[%clk 0:00:03]} 61. Kf3 {[%clk 0:00:04]}  Kf7 {[%clk 0:00:04]} 62. Ke2 {[%clk 0:00:04]}  Nc8 {[%clk 0:00:04]} 63. Kd3 {[%clk 0:00:05]}  Ke7 {[%clk 0:00:05]} 64. Kd4 {[%clk 0:00:06]}  Kd6 {[%clk 0:00:05]} 65. e4 {[%clk 0:00:05]}  dxe4 {[%clk 0:00:05]} 66. Kxe4 {[%clk 0:00:06]}  Kxc6 {[%clk 0:00:06]} 67. g3 {[%clk 0:00:05]}  hxg3 {[%clk 0:00:05]} 68. Kf3 {[%clk 0:00:05]}  Kd5 {[%clk 0:00:05]} 69. Kxg3 {[%clk 0:00:06]}  Ke5 {[%clk 0:00:06]} 70. Kg4 {[%clk 0:00:07]}  Nd6 {[%clk 0:00:06]} 71. h4 {[%clk 0:00:07]}  gxh4 {[%clk 0:00:07]} 72. Kxh4 {[%clk 0:00:07]}  Nxf5+ {[%clk 0:00:08]} 73. Kg4 {[%clk 0:00:07]}  Nd6 {[%clk 0:00:08]} 74. Kf3 {[%clk 0:00:08]}  Kf5 {[%clk 0:00:09]} 75. Ke3 {[%clk 0:00:08]}  Kg4 {[%clk 0:00:09]} 76. Kf2 {[%clk 0:00:07]}  Kf4 {[%clk 0:00:09]} 77. Kg2 {[%clk 0:00:08]}  Ke3 {[%clk 0:00:10]} 0-1


[Site "https://www.chess.com"]